Cogmind - Beta 14 @@@ ROGUE MODE // 2024.11.02 @ 13:36:43 Player: Dosh Result: Escaped! Performance ------------- Evolutions (9) 4500 Regions Visited (29) 5800 Robots Destroyed (523) 2615 Value Destroyed (23412) 23412 Prototype IDs (74) 1480 Alien Tech Used (1) 200 Bonus (5725) 5725 TOTAL SCORE: 43732 Bonus ------- High Alert Combat Kills 2522 Follower Combat Kills 1791 Entered DSFs 500 Aligned with FarCom 300 Met Zhirov 300 Met R17 at Cetus 500 Met R17 at Research 2000 Win 3000 Friendly Fire -5188 Cogmind --------- Core Integrity 1526/1600 Matter 299/300 Energy 889/910 System Corruption 4% Temperature Cool (12) Movement Treading (160) Location To Epsilon Eridani Parts ------- > --- POWER (3) -------- Cooled Antimatter Reactor Cooled Antimatter Reactor Quantum Reactor > --- PROPULSION (6) --- Centrium Heavy Treads Centrium Heavy Treads Centrium Heavy Treads > --- UTILITY (10) ----- 2N-1CE's Frost Array Huge Storage Unit Experimental Targeting Computer Core Analyzer Advanced Kinecellerator Advanced Weapon Cycler SHELL Armor Advanced Force Field > --- WEAPON (6) ------- Railgun Advanced KE Penetrator Advanced KE Penetrator (fused) Advanced KE Penetrator (fused) Advanced KE Penetrator Advanced KE Penetrator > --- INVENTORY (25) --- Compact Particle Reactor Cooled Antimatter Reactor Centrium Heavy Treads Long-range Terrain Scanner Improved Armor Integrity Analyzer Precision Matter Filter Advanced Transmission Jammer Cloak of Protection Medium Regenerative Plating Advanced Force Field Antimissile System Long-range Tractor Beam Improved Trap Extractor (4/6 Fire) Transdimensional Reconstructor Enhanced Nova Cannon Enhanced Coil Gun Gamma Bomb Array Advanced Datajack Peak State ------------ > --- POWER ------------ Cooled Antimatter Reactor Cooled Antimatter Reactor Quantum Reactor > --- PROPULSION ------- Centrium Heavy Treads Centrium Heavy Treads Centrium Heavy Treads > --- UTILITY ---------- Huge Storage Unit Experimental Optical Array Experimental Targeting Computer Core Analyzer Advanced Kinecellerator Advanced Weapon Cycler SHELL Armor Advanced Force Field > --- WEAPON ----------- Advanced KE Penetrator Advanced KE Penetrator Advanced KE Penetrator Advanced KE Penetrator Advanced KE Penetrator Advanced KE Penetrator > --- INVENTORY -------- Compact Particle Reactor Cooled Antimatter Reactor Centrium Heavy Treads 2N-1CE's Frost Array Improved Matter Compressor Long-range Terrain Scanner Improved Armor Integrity Analyzer Precision Matter Filter Advanced Transmission Jammer Cloak of Protection Medium Regenerative Plating Advanced Force Field Antimissile System Improved Hacking Suite Experimental System Shield Long-range Tractor Beam Improved Trap Extractor Transdimensional Reconstructor Enhanced Nova Cannon Enhanced Coil Gun Railgun Advanced KE Penetrator Gamma Bomb Array Advanced Datajack [Rating: 222] Favorites ----------- Power Quantum Reactor Engine Cooled Deuterium Engine Power Core Light Nuclear Core Reactor Quantum Reactor Propulsion Centrium Heavy Treads Treads Centrium Heavy Treads Leg Flexi-carbon Leg Wheel Armored Huge Wheel Utility Huge Storage Unit Device Advanced Force Field Storage Huge Storage Unit Processor Core Analyzer Hackware Hacking Suite Protection Layered Heavy Armor Plating Weapon Enhanced Autogun Energy Cannon Enhanced Nova Cannon Ballistic Gun Enhanced Autogun Launcher Rocket Launcher Special Weapon Remote Datajack Impact Weapon Powered Hammer Special Melee Weapon Advanced Datajack Build | -11 -10 -10 -9 -9 -9 -8 -8 -7 -7 -7 -7 -6 -6 -5 -5 -5 -5 -5 -5 -4 -4 -4 -4 -4 -4 -3 -3 -2 -1 ------- Run | Yrd Mat Min Mat Min Exi Min Mat Fac Was Fac Sto Fac DSF Fac Was Fac Upp Upp Zhi Pro Fac Was Fac Ext Cet Res Tes Res Acc Slots Evolved 18 | . . . 2 . . . 2 2 . . . 2 . 2 . . . . . . 2 . . . . 2 . 2 2 Power 2 | . . . . . . . . . . . . . . 1 . . . . . . . . . . . . . 1 . Propulsion 4 | . . . 1 . . . . . . . . 1 . . . . . . . . 1 . . . . . . 1 . Utility 8 | . . . 1 . . . 2 . . . . 1 . 1 . . . . . . 1 . . . . 1 . . 1 Weapon 4 | . . . . . . . . 2 . . . . . . . . . . . . . . . . . 1 . . 1 Parts Attached 355 | 6 5 4 35 3 2 1 24 7 11 13 11 3 6 3 11 17 10 1 9 11 21 12 7 17 16 9 34 13 33 Power 30 | 1 . 1 3 . . . 4 . 1 . 3 . 2 1 1 1 . . 2 1 1 2 . 1 1 . . 4 . Engine 14 | 1 . 1 3 . . . 3 . . . 3 . 2 . . 1 . . . . . . . . . . . . . Core 1 | . . . . . . . 1 . . . . . . . . . . . . . . . . . . . . . . Reactor 15 | . . . . . . . . . 1 . . . . 1 1 . . . 2 1 1 2 . 1 1 . . 4 . Propulsion 45 | 2 3 1 15 . 1 . 4 1 1 2 . 2 . . 5 1 . . . 1 3 . . . 2 . . 1 . Treads 41 | 2 3 1 15 . 1 . 4 . . 1 . 2 . . 5 1 . . . 1 2 . . . 2 . . 1 . Leg 1 | . . . . . . . . . . . . . . . . . . . . . 1 . . . . . . . . Wheel 3 | . . . . . . . . 1 1 1 . . . . . . . . . . . . . . . . . . . Hover . | . . . . . . . . . . . . . . . . . . . . . . . . . . . . . . Flight . | . . . . . . . . . . . . . . . . . . . . . . . . . . . . . . Utility 180 | 1 2 . 8 . 1 . 8 2 5 6 3 1 4 2 5 12 8 1 3 4 14 7 5 5 9 6 29 6 23 Device 135 | . . . 2 . . . 5 1 2 5 3 1 3 1 4 11 5 1 2 3 11 7 5 4 3 4 25 6 21 Storage 5 | 1 1 . 1 . . . . . 1 . . . 1 . . . . . . . . . . . . . . . . Processor 6 | . 1 . . . . . . . 1 . . . . . 1 . . . . . . . . 1 . 1 1 . . Hackware 8 | . . . 1 . . . . . . . . . . . . 1 . . . . 2 . . . . 1 1 . 2 Protection 26 | . . . 4 . 1 . 3 1 1 1 . . . 1 . . 3 . 1 1 1 . . . 6 . 2 . . Artifact . | . . . . . . . . . . . . . . . . . . . . . . . . . . . . . . Weapon 100 | 2 . 2 9 3 . 1 8 4 4 5 5 . . . . 3 2 . 4 5 3 3 2 11 4 3 5 2 10 Energy Gun . | . . . . . . . . . . . . . . . . . . . . . . . . . . . . . . Energy Cannon 9 | . . . . . . . 1 . . . . . . . . . . . . . . 1 1 3 . . 1 . 2 Ballistic Gun 79 | 2 . 2 9 1 . 1 6 1 4 3 5 . . . . 3 1 . 4 4 3 2 1 7 4 3 3 2 8 Ballistic Cannon . | . . . . . . . . . . . . . . . . . . . . . . . . . . . . . . Launcher 7 | . . . . 2 . . 1 . . 1 . . . . . . 1 . . 1 . . . . . . 1 . . Special Weapon 1 | . . . . . . . . 1 . . . . . . . . . . . . . . . . . . . . . Impact Weapon 3 | . . . . . . . . 2 . 1 . . . . . . . . . . . . . . . . . . . Slashing Weapon . | . . . . . . . . . . . . . . . . . . . . . . . . . . . . . . Piercing Weapon . | . . . . . . . . . . . . . . . . . . . . . . . . . . . . . . Special Melee Weapon 1 | . . . . . . . . . . . . . . . . . . . . . . . . 1 . . . . . Unidentified Prototypes 27 | . . . 2 . . . 2 . . 1 2 . 1 . . . 1 . 3 . 1 . . 1 3 1 7 1 1 Parts Lost 24 | . . 3 5 . . . 3 . . . 2 . 1 . . 2 . . . 4 1 . . . . . 1 . 2 Power 3 | . . 1 1 . . . . . . . . . . . . . . . . 1 . . . . . . . . . Propulsion 5 | . . 1 1 . . . 1 . . . 1 . . . . . . . . 1 . . . . . . . . . Utility 10 | . . . 3 . . . 2 . . . 1 . 1 . . 1 . . . 1 . . . . . . 1 . . Weapon 6 | . . 1 . . . . . . . . . . . . . 1 . . . 1 1 . . . . . . . 2 Highest Loss Streak 2 | . . 2 2 . . . 2 . . . 2 . 1 . . 1 . . . 2 1 . . . . . 1 . 1 To Critical Strikes . | . . . . . . . . . . . . . . . . . . . . . . . . . . . . . . Average Slot Usage (%) 86 | . 99 99 97 100 100 100 93 81 77 80 90 86 84 81 81 81 81 81 58 81 83 84 84 83 87 89 80 78 79 Engine 5 | . 14 14 10 11 11 11 8 7 1 . 5 6 6 5 5 9 11 11 8 2 . . . . . . . . . Reactor 4 | . . . . . . . . . 5 7 1 . . 5 5 1 . . 2 8 10 10 10 9 10 9 9 13 12 Treads 17 | . 28 27 32 33 33 33 26 17 7 7 6 13 13 11 10 11 11 11 11 11 11 15 15 15 15 14 14 13 12 Device 14 | . . . 6 11 5 . 13 15 13 17 29 33 31 23 17 16 17 16 16 17 20 21 21 19 15 19 10 8 12 Storage 6 | . 14 14 11 11 11 11 9 7 7 7 7 6 6 5 5 5 5 5 5 5 5 5 5 5 5 4 4 4 4 Processor 5 | . 13 14 3 . . . . . 6 . . . . . 4 5 5 5 5 5 5 5 5 5 9 9 12 13 11 Hackware 2 | . . . 7 11 11 11 8 . . . . . . . . . . . . . . . . . . 2 . . . Protection 4 | . . . 2 . 5 11 9 7 3 1 . . . 4 5 5 4 5 5 5 5 5 5 5 8 5 4 4 4 Ballistic Gun 21 | . 28 28 21 18 11 17 16 13 14 26 29 26 26 23 23 22 22 23 1 22 20 20 20 18 21 22 22 21 23 Peak Build Rating 222 | 6 8 9 20 20 21 21 41 60 64 69 64 72 86 97 98 101 102 102 103 107 127 130 134 135 152 167 183 203 222 Average Rating 90 | 4 7 8 16 19 20 21 35 57 59 60 58 71 77 92 92 95 98 99 86 104 122 126 129 129 138 165 178 202 217 On Entrance 81 | . 6 8 9 19 20 21 21 41 60 59 64 54 72 80 93 93 96 102 100 103 107 126 128 127 127 150 167 181 202 Naked Turns . | . . . . . . . . . . . . . . . . . . . . . . . . . . . . . . Heaviest Build 226 | 13 28 29 56 52 53 53 82 92 128 157 115 111 115 143 143 151 155 158 163 163 172 165 173 183 168 171 194 220 226 Greatest Support 240 | 40 40 40 66 66 66 66 66 65 28 28 28 140 140 140 140 140 140 140 140 140 162 162 162 162 187 187 187 240 240 Greatest Overweight (x) 5 | . . 1 . . . . 1 3 4 5 4 . . 1 2 1 1 1 1 1 1 1 1 1 1 1 1 . . Average Overweight (x) . | . . . . . . . . 1 3 4 3 . . 1 1 . . 1 . 1 . . . . . . . . . Largest Inventory Capacity 25 | 8 15 15 20 20 20 20 20 20 25 25 25 25 25 25 25 25 25 25 25 25 25 25 25 25 25 25 25 25 25 Average Capacity 22 | 6 13 15 18 20 20 20 20 20 24 25 25 25 25 25 25 25 25 25 25 25 25 25 25 25 25 25 25 25 25 Most Carried 25 | 2 14 12 20 20 20 20 20 20 25 24 25 24 22 21 25 25 25 25 25 24 25 25 25 25 25 25 25 25 25 Average Carried 21 | 1 8 10 17 19 19 20 19 19 21 20 24 20 19 19 23 24 23 24 24 21 23 25 24 24 24 24 24 24 24 Final Capacity 25 | 8 15 15 20 20 20 20 20 20 25 25 25 25 25 25 25 25 25 25 25 25 25 25 25 25 25 25 25 25 25 Final Carried 25 | 2 12 11 20 20 20 20 20 20 21 22 24 20 22 19 24 23 25 24 24 22 25 25 25 25 25 25 25 25 19 Class Distribution -------------------- 25% | Tank 16% | Mutant 15% | Scavenger-Gunner 14% | Scavenger-Mutant 9% | Gunner 5% | Scavenger-Executioner 5% | Scavenger-Tank Dominant Class ---------------- Mutant | -10/Materials Mutant | -10/Mines Scavenger-Mutant | -9/Materials Scavenger-Mutant | -9/Mines Scavenger-Mutant | -9/Exiles Scavenger-Mutant | -8/Mines Mutant | -8/Materials Tank | -7/Factory Gunner | -7/Waste Tank | -7/Factory Tank | -7/Storage Tank | -6/Factory Infiltrator-Skirmisher | -6/DSF Scavenger-Tank | -5/Factory Scavenger-Gunner | -5/Waste Gunner | -5/Factory Tank | -5/Upper Caves Tank | -5/Upper Caves Mutant | -5/Zhirov Tank | -4/Proximity Caves Tank | -4/Factory Gunner | -4/Waste Infiltrator-Gunner | -4/Factory Tank | -4/Extension Scavenger-Tank | -4/Cetus Scavenger-Gunner | -3/Research Scavenger-Gunner | -3/Testing Scavenger-Gunner | -2/Research Scavenger-Executioner | -1/Access Resources | -11 -10 -10 -9 -9 -9 -8 -8 -7 -7 -7 -7 -6 -6 -5 -5 -5 -5 -5 -5 -4 -4 -4 -4 -4 -4 -3 -3 -2 -1 ----------- Run | Yrd Mat Min Mat Min Exi Min Mat Fac Was Fac Sto Fac DSF Fac Was Fac Upp Upp Zhi Pro Fac Was Fac Ext Cet Res Tes Res Acc Matter Collected 24551 | 219 383 81 1270 119 . 83 800 155 63 1245 1149 . 293 21 1862 1904 356 66 . 2199 1599 951 136 1733 1117 593 2403 783 2968 Remotely 2661 | . . . . . . . . . . . . . . . . 667 . . . . 405 460 . . . . 326 . 803 Salvage Created 32105 | . 656 196 2096 17 . 117 1533 712 924 1380 1126 . 341 21 1709 2045 402 17 . 1735 1813 1948 139 1670 911 852 2878 1690 5177 Parts 1460 | . 54 9 114 8 . 13 92 37 12 70 48 . 26 3 30 99 10 2 . 69 102 44 5 71 69 36 168 59 210 Haulers Intercepted 28 | . 2 . 6 . . . 5 1 . 2 4 . . . . 2 1 . . . 2 . . . . 1 . 1 1 Recyclers Shooed 18 | . 3 . 4 . . . 3 . . . 1 . . . . . . . . . 1 . 1 3 . 1 . . 1 Parts Field Recycled . | . . . . . . . . . . . . . . . . . . . . . . . . . . . . . . Retrieved Matter . | . . . . . . . . . . . . . . . . . . . . . . . . . . . . . . Parts Self-Destructed 90 | . . . . . . . . . . . . . . . . . 7 . . 83 . . . . . . . . . Prevented . | . . . . . . . . . . . . . . . . . . . . . . . . . . . . . . Kills | -11 -10 -10 -9 -9 -9 -8 -8 -7 -7 -7 -7 -6 -6 -5 -5 -5 -5 -5 -5 -4 -4 -4 -4 -4 -4 -3 -3 -2 -1 ------- Run | Yrd Mat Min Mat Min Exi Min Mat Fac Was Fac Sto Fac DSF Fac Was Fac Upp Upp Zhi Pro Fac Was Fac Ext Cet Res Tes Res Acc Combat Hostiles Destroyed 390 | . 15 4 33 7 . 7 26 11 3 13 14 . 5 . 6 32 7 1 . 25 28 6 2 20 8 8 37 16 56 Guns 361 | . 15 4 33 . . 1 18 11 3 12 14 . 5 . 6 32 2 1 . 23 28 6 2 20 8 8 37 16 56 Cannons 5 | . . . . . . . 5 . . . . . . . . . . . . . . . . . . . . . . AOE 23 | . . . . 7 . 6 3 . . . . . . . . . 5 . . 2 . . . . . . . . . Classes Destroyed 26 | . 6 1 4 . . . 2 2 1 . . . 1 . 1 1 1 1 . 1 . 1 . . . . 1 . 2 Worker 22 | . 1 . 4 . . . 1 . . 6 1 . . . . 3 . . . . . . . . . 2 1 1 2 Builder 16 | . . . 1 . . . . 1 . 5 . . . . . 2 . . . . . . . 1 . 1 2 . 3 Tunneler 5 | . . . 1 . . 1 . . . 1 . . . . . . . . . . . . . . . 1 . . 1 Hauler 28 | . 2 . 6 . . . 5 1 . 2 4 . . . . 2 1 . . . 2 . . . . 1 . 1 1 Recycler 19 | . . . 3 . . . 1 . . 6 2 . . . . . . . . . . . . 2 . 1 . 2 2 Carrier 1 | . . . . . . . . . . . . . . . . . . . . . . . . . . . . . 1 Minesweeper 1 | . . . . . . . . . . . . . . . . . 1 . . . . . . . . . . . . Operator 9 | . 1 . 3 . . . 1 1 . . . . . . . . . . . . 1 . . . . . . . 2 Watcher 29 | . 3 . 5 . . . 5 1 . 3 . . . 1 . 2 . . . . 1 . . 2 2 . 1 . 3 Swarmer 56 | . 6 . 6 7 . 4 6 1 . 2 . . . . . 4 . . . 2 8 . . 6 . . . . 4 Saboteur 2 | . . . . . . . . . . . . . . . . 1 . . . . . . . . . . . . 1 Grunt 160 | . 9 2 16 . . 2 10 1 . 6 10 . . . . 14 7 . . 13 8 . . 6 . 8 13 6 29 Brawler 4 | . . . . . . . . 1 . . . . . . . . . . . . . . . . . . . . 3 Duelist 10 | . . . 1 . . 1 1 . . 1 . . . . . 1 . . . 4 . . . . . . . . 1 Protector 1 | . . . . . . . . . . . . . . . . . . . . . . . . . . . . . 1 Researcher 1 | . . . . . . . . . . . . . . . . . . . . . . . . . . . 1 . . Sentry 47 | . . 2 10 . . . 5 4 . . 3 . . . . 2 . . . 2 5 . 1 7 . . 2 3 1 Specialist 9 | . . . . . . . 2 . . . . . 4 . . . . . . . . . . . . . 3 . . Hunter 20 | . . . . . . . 2 1 . 1 . . . . . 4 . . . 3 . . 1 . . . 2 2 4 Programmer 50 | . . . . . . . . 3 . 3 . . . . . 6 . . . . 8 . . . . . 16 5 9 Heavy 2 | . . . . . . . . . . . . . 1 . . . . . . . . . . . . . . . 1 Behemoth 4 | . . . . . . . . . . . . . . . . . . . . 1 . . . 1 . . . . 2 Compactor 15 | . . . . . . . . . 3 . . . . . 6 . . . . . . 6 . . . . . . . Cetus Guard 8 | . . . . . . . . . . . . . . . . . . . . . . . . . 8 . . . . Protovariant G 1 | . . . . . . . . . . . . . . . . . . . . . . . . . . . 1 . . Master Thief 1 | . . . . . . . . . . . . . . . . . . 1 . . . . . . . . . . . Surgeon 1 | . . . . . . . . . . . . . . . . . . . . . . 1 . . . . . . . Wasp 2 | . . . . . . . . . . . . . . . . . . . . . . 2 . . . . . . . Savage 1 | . . . . . . . . . . . . . . . . . . . . . . . . . 1 . . . . Martyr 4 | . . . . . . . . . . . . . . . 2 . . . . . . 2 . . . . . . . Guerrilla 1 | . . . . . . . . . . . . . . . . . . . . . . . . . 1 . . . . Best Kill Streak 11 | . 3 2 5 4 . 4 4 4 1 8 9 . 2 1 3 11 5 1 . 7 10 1 2 4 4 5 7 4 11 Combat Bots Only 9 | . 3 2 4 4 . 4 4 4 1 3 8 . 2 . 3 7 5 1 . 7 9 1 2 4 4 5 7 3 9 Max Kills in Single Turn 4 | . 1 1 2 2 . 4 4 1 1 2 1 . 1 1 1 4 3 1 . 2 2 3 1 1 2 2 2 2 3 Gunslinging 2 | . . . 1 . . . . . . . . . . . . . . . . 1 . . . . . . 1 . 2 Exploded 4 | . . . . 2 . 4 3 . . . . . . . . . 3 . . 1 . . . . . . . . . Melee . | . . . . . . . . . . . . . . . . . . . . . . . . . . . . . . Uniques/NPCs Destroyed 2 | . . . . . . . . . . . 1 . . . . . . . . . . . . 1 . . . . . 01-MTF (-7/Storage) A7 (-4/Extension) Combat | -11 -10 -10 -9 -9 -9 -8 -8 -7 -7 -7 -7 -6 -6 -5 -5 -5 -5 -5 -5 -4 -4 -4 -4 -4 -4 -3 -3 -2 -1 -------- Run | Yrd Mat Min Mat Min Exi Min Mat Fac Was Fac Sto Fac DSF Fac Was Fac Upp Upp Zhi Pro Fac Was Fac Ext Cet Res Tes Res Acc Hostile Shots Fired 1830 | . 70 49 157 21 . 10 113 93 . 106 110 . 21 . 1 104 10 2 . 151 75 . 15 92 49 21 167 93 300 Missed 475 | . 25 14 50 9 . 4 31 40 . 29 40 . 5 . . 19 3 . . 25 23 . 3 14 11 2 32 23 73 Damage Taken 17276 | . 465 519 1348 65 . 176 981 585 . 1695 662 . 309 . 38 1211 108 . . 1885 667 . 423 868 621 252 1736 842 1820 Core 1285 | . 60 160 168 . . 58 116 6 . 181 46 . 66 . . 27 . . . 40 19 . 14 76 . 7 118 49 74 Absorbed by Shields 8484 | . . . 60 29 . . 251 188 . 4 262 . 94 . . 396 73 . . 1216 615 . . 862 408 268 1129 874 1755 Reduced by Siege Mode 488 | . . . . . . . . . . . . . 15 . 10 21 14 . . 166 10 . 11 39 43 3 55 23 78 Regen/Repaired (Parts) 3398 | . 98 . 112 . . . 11 215 . . . . . . 57 . . . . . 425 168 194 135 16 238 630 354 745 Core Remaining (%) 77 | 100 . 12 . . . 43 78 . . . 66 . 92 . . . . . . 93 . . . . 90 . 90 96 95 Volleys Fired 1307 | . 78 23 167 9 . 8 96 3 3 69 65 . 12 2 56 91 15 3 . 86 80 57 16 96 46 21 73 37 95 Largest 6 | . 2 2 2 2 . 2 2 1 4 4 4 . 4 4 4 4 4 4 . 4 4 4 4 4 4 5 5 5 6 Hottest 295 | . 40 40 46 46 . 46 98 25 100 100 100 . 100 100 100 100 100 100 . 100 100 100 120 195 100 160 170 170 295 Shots Fired 4634 | . 156 46 334 11 . 11 190 57 64 203 243 . 48 8 224 362 41 12 . 325 315 230 60 354 184 102 344 179 531 Gun 4563 | . 156 46 334 4 . 6 164 55 64 199 243 . 48 8 224 362 36 12 . 323 315 230 59 343 184 102 343 179 524 Cannon 45 | . . . . . . . 25 . . . . . . . . . . . . . . . 1 11 . . 1 . 7 Launcher 24 | . . . . 7 . 5 1 . . 4 . . . . . . 5 . . 2 . . . . . . . . . Special 2 | . . . . . . . . 2 . . . . . . . . . . . . . . . . . . . . . Kinetic 4563 | . 156 46 334 4 . 6 164 55 64 199 243 . 48 8 224 362 36 12 . 323 315 230 59 343 184 102 343 179 524 Thermal 45 | . . . . . . . 25 . . . . . . . . . . . . . . . 1 11 . . 1 . 7 Explosive 24 | . . . . 7 . 5 1 . . 4 . . . . . . 5 . . 2 . . . . . . . . . Electromagnetic . | . . . . . . . . . . . . . . . . . . . . . . . . . . . . . . Robot Hit Streak 101 | . 12 13 15 1 . 3 20 18 32 7 9 . 17 4 36 19 15 4 . 29 36 101 20 30 48 11 36 20 33 Robot Miss Streak 11 | . 4 1 4 3 . 4 3 2 3 6 5 . 5 1 2 5 1 5 . 11 4 3 3 4 7 4 6 3 3 Penetration Max 2 | . . . . . . . 1 . . . . . . . . . . . . . . . . . . 1 1 1 2 Secondary Targets 77 | . 3 1 2 . . . 7 . . 2 3 . 1 . 1 6 . 1 . 11 4 . 1 4 2 2 8 4 14 Max Gunslinging Chain 2 | . 1 1 1 . . . 1 . . 1 1 . 1 . 1 1 . 1 . 1 1 . 1 1 1 1 2 1 2 Autonomous 107 | . . . . . . . . 54 53 . . . . . . . . . . . . . . . . . . . . Shots Hit Robots 3213 | . 99 38 220 1 . 5 130 49 54 100 136 . 35 4 199 233 26 5 . 238 220 197 39 275 152 60 230 125 343 Core Hits 1262 | . 50 12 72 7 . 14 57 21 12 48 42 . 14 2 47 102 28 3 . 107 93 49 14 88 59 26 90 49 156 Critical Kills 62 | . . . 2 . . . 1 . . . 2 . . . 1 3 . . . 2 . 1 . . 1 4 14 5 26 Critical Parts Destroyed 54 | . 1 1 1 . . . 1 2 . 2 2 . 1 . . . . . . . . 1 . . . 4 11 5 22 Critical Strikes 127 | . 1 1 3 . . . 2 2 . 2 4 . 1 . 4 3 . . . 2 . 2 . 1 1 8 25 11 54 Destroy 126 | . 1 1 3 . . . 2 2 . 1 4 . 1 . 4 3 . . . 2 . 2 . 1 1 8 25 11 54 Smash 1 | . . . . . . . . . . 1 . . . . . . . . . . . . . . . . . . . Melee Attacks 26 | . . . . . . . . 2 . 6 1 . . . . . . . . . . . . 17 . . . . . Impact 9 | . . . . . . . . 2 . 6 1 . . . . . . . . . . . . . . . . . . Slashing . | . . . . . . . . . . . . . . . . . . . . . . . . . . . . . . Piercing . | . . . . . . . . . . . . . . . . . . . . . . . . . . . . . . Sneak Attacks 21 | . . . . . . . . . . 3 1 . . . . . . . . . . . . 17 . . . . . Combat Hostiles . | . . . . . . . . . . . . . . . . . . . . . . . . . . . . . . Follow-up Attacks . | . . . . . . . . . . . . . . . . . . . . . . . . . . . . . . Damage Inflicted 72059 | 2 974 315 3879 633 . 542 2737 1555 1513 2492 2533 . 587 65 3469 4636 1062 81 . 4135 4010 3515 708 5097 2722 1467 6479 3457 13394 Guns 66685 | . 962 315 3370 18 . 54 1970 1541 1513 1720 2380 . 587 65 3469 4115 414 81 . 3923 4006 3515 700 4925 2722 1386 6445 3431 13058 Cannons 565 | . . . . . . . 520 . . . . . . . . . . . . . . . . 45 . . . . . Explosions 3529 | . . . 354 615 . 466 211 . . 424 . . . . . 495 648 . . 212 . . . . . . . . 104 Melee 321 | . . . . . . . . . . 241 80 . . . . . . . . . . . . . . . . . . Ramming 959 | 2 12 . 155 . . 22 36 14 . 107 73 . . . . 26 . . . . 4 . 8 127 . 81 34 26 232 Kinetic 66685 | . 962 315 3370 18 . 54 1970 1541 1513 1720 2380 . 587 65 3469 4115 414 81 . 3923 4006 3515 700 4925 2722 1386 6445 3431 13058 Thermal 1204 | . . . 88 . . 56 520 . . . . . . . . 495 . . . . . . . 45 . . . . . Explosive 2890 | . . . 266 615 . 410 211 . . 424 . . . . . . 648 . . 212 . . . . . . . . 104 Electromagnetic . | . . . . . . . . . . . . . . . . . . . . . . . . . . . . . . Impact 321 | . . . . . . . . . . 241 80 . . . . . . . . . . . . . . . . . . Slashing . | . . . . . . . . . . . . . . . . . . . . . . . . . . . . . . Piercing . | . . . . . . . . . . . . . . . . . . . . . . . . . . . . . . Highest Corruption 37 | . . . . . . . . 1 29 29 37 . . . . 4 4 4 4 4 3 1 1 1 1 1 12 5 4 Average Corruption 6 | . . . . . . . . 1 16 29 30 . . . . 3 4 4 4 4 1 1 1 1 1 1 6 4 2 Corruption Purged 2 | . . . . . . . . . . . . . . . . . . . . . 2 . . . . . . . . Corruption Blocked . | . . . . . . . . . . . . . . . . . . . . . . . . . . . . . . Effects 384 | . . . . . . . . 5 14 75 65 . . . . 5 35 5 8 35 11 8 12 21 1 1 53 9 21 Message Errors 84 | . . . . . . . . 1 1 15 12 . . . . 3 9 1 . 8 3 1 3 10 . 1 13 1 2 Matter Fused 90 | . . . . . . . . 1 5 20 13 . . . . 1 11 1 3 6 1 2 2 4 1 . 14 . 5 Heat Flow Errors 29 | . . . . . . . . . 1 4 6 . . . . . 2 1 1 1 . 1 2 2 . . 5 1 2 Energy Discharges 48 | . . . . . . . . 1 2 10 3 . . . . . 7 1 3 7 . 1 . 2 . . 5 2 4 Parts Rejected 6 | . . . . . . . . . . . . . . . . 1 . . . 1 . . 1 1 . . 1 1 . Parts Fused 6 | . . . . . . . . . . 1 1 . . . . . . . 1 . . . . . . . 2 . 1 Data Loss (minor) 28 | . . . . . . . . 2 . 5 5 . . . . . 3 1 . 1 1 1 1 2 . . 4 1 1 Data Loss (major) 21 | . . . . . . . . . 1 2 3 . . . . . 3 . . 3 2 . 2 . . . 3 1 1 Misfires 13 | . . . . . . . . . 1 2 2 . . . . . . . . 2 1 2 . . . . 2 1 . Alerts 9 | . . . . . . . . . 1 3 2 . . . . . . . . 1 . . . . . . 1 . 1 Misdirections 4 | . . . . . . . . . 1 2 1 . . . . . . . . . . . . . . . . . . Weapon Failures 46 | . . . . . . . . . 1 11 17 . . . . . . . . 5 3 . 1 . . . 3 1 4 Overload Shots . | . . . . . . . . . . . . . . . . . . . . . . . . . . . . . . Overflow Damage 755 | . . . 116 41 . 6 33 . . 211 55 . . . . 200 . . . 2 . . . 12 . 5 . . 74 Projectiles . | . . . . . . . . . . . . . . . . . . . . . . . . . . . . . . Explosions 431 | . . . 116 41 . 6 33 . . 33 . . . . . 200 . . . 2 . . . . . . . . . Melee 324 | . . . . . . . . . . 178 55 . . . . . . . . . . . . 12 . 5 . . 74 Knockbacks 8 | . . . 2 . . . . . . 2 . . . . . 1 . . . . . . . 1 . . . . 2 Impact 8 | . . . 2 . . . . . . 2 . . . . . 1 . . . . . . . 1 . . . . 2 Kinetic . | . . . . . . . . . . . . . . . . . . . . . . . . . . . . . . Secondary . | . . . . . . . . . . . . . . . . . . . . . . . . . . . . . . Self-Inflicted Damage 374 | . . . 92 . . 80 . 7 . 114 35 . . . . . 46 . . . . . . . . . . . . Shots 5 | . . . 1 . . 2 . . . 1 . . . . . . 1 . . . . . . . . . . . . Rammed 68 | 1 7 . 17 . . 2 4 1 . 9 4 . . . . 3 . . . . 1 . 1 7 . 2 3 2 4 Targets Rammed 77 | 1 7 . 21 . . 2 5 1 . 9 4 . . . . 3 . . . . 1 . 1 7 . 4 4 2 5 Kicked . | . . . . . . . . . . . . . . . . . . . . . . . . . . . . . . Crushed 9 | . . . 4 . . . 1 . . . . . . . . . . . . . . . . . . 2 1 . 1 Highest Temperature 410 | . 12 18 22 . . 6 230 . 133 410 96 . 18 . 320 403 84 242 101 187 95 118 169 203 296 34 324 156 378 Average Temperature 79 | . 7 10 6 . . 4 72 . 80 216 41 . 18 . 146 108 45 94 62 85 37 49 48 50 81 14 73 42 114 Received Heat Transfer 3250 | . 156 228 510 . . 54 353 79 . 354 138 . . . . 235 34 . . 277 69 . . 159 17 46 299 48 194 Effects 2 | . . . . . . . . . . 1 . . . . . . . . . . . . . . . . . . 1 Energy Bleed 1 | . . . . . . . . . . 1 . . . . . . . . . . . . . . . . . . . Short Circuit 1 | . . . . . . . . . . . . . . . . . . . . . . . . . . . . . 1 Siege Activations 81 | . . . . . . . . . . . . . 2 . 6 9 2 1 . 8 10 2 1 7 2 2 14 4 11 Total Turns 2050 | . . . . . . . . . . . . . 15 . 154 101 26 2 . 151 125 460 12 90 51 11 420 55 377 Longest Duration 425 | . . . . . . . . . . . . . 11 . 55 35 14 2 . 58 36 425 12 25 27 6 95 20 111 Robots Corrupted 8 | . . . . . . . . . . 3 . . . . . . . . . . . . . 3 . 1 . . 1 Combat Hostiles 1 | . . . . . . . . . . 1 . . . . . . . . . . . . . . . . . . . Parts Fried 17 | . . . . . . . . . . 2 1 . . . . . . . . . . . . 9 . 2 . . 3 Impact Corruptions 17 | . . . . . . . . . . 8 2 . . . . . . . . . . . . 3 . 1 . . 3 Robots Melted . | . . . . . . . . . . . . . . . . . . . . . . . . . . . . . . Combat Hostiles . | . . . . . . . . . . . . . . . . . . . . . . . . . . . . . . Parts Melted 6 | . . . . . . . 2 . . . . . . . . 1 . . . 2 . . . . . . 1 . . Heat Transferred 1227 | . . . 50 . . 50 740 . . . . . . . . 350 . . . . . . . 37 . . . . . Parts Sabotaged . | . . . . . . . . . . . . . . . . . . . . . . . . . . . . . . Parts Stolen 2 | . . . . . . . . . . . . . . . . . . 2 . . . . . . . . . . . Parts Stripped . | . . . . . . . . . . . . . . . . . . . . . . . . . . . . . . Power Chain Reactions . | . . . . . . . . . . . . . . . . . . . . . . . . . . . . . . Alert | -11 -10 -10 -9 -9 -9 -8 -8 -7 -7 -7 -7 -6 -6 -5 -5 -5 -5 -5 -5 -4 -4 -4 -4 -4 -4 -3 -3 -2 -1 ------- Run | Yrd Mat Min Mat Min Exi Min Mat Fac Was Fac Sto Fac DSF Fac Was Fac Upp Upp Zhi Pro Fac Was Fac Ext Cet Res Tes Res Acc Peak Influence 1615 | . 258 113 652 218 . 254 362 230 43 229 631 203 260 160 56 866 . . . . 583 197 246 685 497 433 426 492 1615 Initial 321 | . . 38 43 83 . . 22 156 38 30 21 203 145 136 56 . . . . . 19 197 . 27 321 177 115 175 295 Average 209 | . 125 83 262 108 . 83 178 108 41 109 372 203 222 152 15 303 . . . . 145 73 81 290 413 278 195 317 555 Maximum Alert Level 5 | . 1 . 2 1 . 1 1 1 . 1 2 1 1 . . 3 . . . . 2 . 1 2 2 2 2 2 5 Low Security (%) 55 | 100 86 100 45 61 . 80 51 77 100 92 16 . 34 100 100 44 . . . . 75 100 90 46 . 6 38 16 9 Level 1 31 | . 13 . 35 38 . 19 48 22 . 7 26 100 65 . . 25 . . . . 14 . 9 26 24 82 56 60 44 Level 2 10 | . . . 19 . . . . . . . 57 . . . . 15 . . . . 9 . . 26 75 10 4 23 15 Level 3 1 | . . . . . . . . . . . . . . . . 14 . . . . . . . . . . . . 18 Level 4 . | . . . . . . . . . . . . . . . . . . . . . . . . . . . . . 10 Level 5 . | . . . . . . . . . . . . . . . . . . . . . . . . . . . . . 1 High Security . | . . . . . . . . . . . . . . . . . . . . . . . . . . . . . . Max Security . | . . . . . . . . . . . . . . . . . . . . . . . . . . . . . . Squads Dispatched 82 | . 4 . 5 . . . 2 3 . 4 8 . 1 . . 11 . . . 1 9 . 4 . . 6 10 4 10 Investigation 14 | . 3 . 3 . . . . . . 1 . . . . . 3 . . . . . . . . . 2 . 1 1 Extermination 25 | . . . . . . . . 3 . 3 1 . . . . 1 . . . . 4 . 3 . . . 5 1 4 Reinforcement 29 | . 1 . 2 . . . 2 . . . 6 . 1 . . 3 . . . . 2 . 1 . . 4 3 2 2 Assault 7 | . . . . . . . . . . . . . . . . 3 . . . 1 . . . . . . . . 3 Garrison 7 | . . . . . . . . . . . 1 . . . . 1 . . . . 3 . . . . . 2 . . Intercept . | . . . . . . . . . . . . . . . . . . . . . . . . . . . . . . Searches Triggered . | . . . . . . . . . . . . . . . . . . . . . . . . . . . . . . Construction Impeded 1 | . . . . . . . . . . . . . . . . 1 . . . . . . . . . . . . . Haulers Reinforced 11 | . . . . . . . . . . . 3 . . . . 2 . . . . 1 . . . . 2 . 1 2 Active Scanning Responses . | . . . . . . . . . . . . . . . . . . . . . . . . . . . . . . Cargo Convoy Interrupts 1 | . . . . . . . . 1 . . . . . . . . . . . . . . . . . . . . . Stealth | -11 -10 -10 -9 -9 -9 -8 -8 -7 -7 -7 -7 -6 -6 -5 -5 -5 -5 -5 -5 -4 -4 -4 -4 -4 -4 -3 -3 -2 -1 --------- Run | Yrd Mat Min Mat Min Exi Min Mat Fac Was Fac Sto Fac DSF Fac Was Fac Upp Upp Zhi Pro Fac Was Fac Ext Cet Res Tes Res Acc Distress Signals 25 | . 1 . 2 . . . 4 2 . . 3 . . . . 4 . . . . . . . . 2 7 . . . Communications Jammed 54 | . . . . . . . . . . . . . 1 . . 6 . . . . 6 . 2 2 . . 17 8 12 Distress Signals 45 | . . . . . . . . . . . . . . . . 6 . . . . 3 . . 2 . . 17 8 9 Times Spotted 571 | . 25 4 59 5 . 3 37 15 6 18 36 . 4 1 6 48 7 4 . 30 34 6 13 38 10 19 49 19 75 Peak Tracking Total 8 | . 4 2 5 4 . 3 8 4 3 4 7 . 2 . 2 6 5 2 . 7 5 1 4 5 5 5 4 4 8 Tactical Retreats 21 | . . . 3 . . . 4 . . . 2 . . . . 1 . . . . 2 . . 4 . . . 1 4 Traps | -11 -10 -10 -9 -9 -9 -8 -8 -7 -7 -7 -7 -6 -6 -5 -5 -5 -5 -5 -5 -4 -4 -4 -4 -4 -4 -3 -3 -2 -1 ------- Run | Yrd Mat Min Mat Min Exi Min Mat Fac Was Fac Sto Fac DSF Fac Was Fac Upp Upp Zhi Pro Fac Was Fac Ext Cet Res Tes Res Acc Traps Triggered 18 | . . . 1 . . . 1 3 . . . . . 1 . . . . . . 2 . . 5 . 1 2 2 . Indirectly . | . . . . . . . . . . . . . . . . . . . . . . . . . . . . . . Trap Hack Attempts 1 | . . . . . . . . . . . . . . . . . . . . . . . . 1 . . . . . Triggered . | . . . . . . . . . . . . . . . . . . . . . . . . . . . . . . Disarmed 6 | . . . . . . . 6 . . . . . . . . . . . . . . . . . . . . . . Reprogrammed . | . . . . . . . . . . . . . . . . . . . . . . . . . . . . . . Reused . | . . . . . . . . . . . . . . . . . . . . . . . . . . . . . . Traps Extracted . | . . . . . . . . . . . . . . . . . . . . . . . . . . . . . . Installed . | . . . . . . . . . . . . . . . . . . . . . . . . . . . . . . Triggered 1 | . . . . . . . . 1 . . . . . . . . . . . . . . . . . . . . . Most Traps Carried 4 | . . . . . . . . . . . . . . . . . 4 4 4 4 4 4 4 4 4 4 4 4 4 Machines | -11 -10 -10 -9 -9 -9 -8 -8 -7 -7 -7 -7 -6 -6 -5 -5 -5 -5 -5 -5 -4 -4 -4 -4 -4 -4 -3 -3 -2 -1 ---------- Run | Yrd Mat Min Mat Min Exi Min Mat Fac Was Fac Sto Fac DSF Fac Was Fac Upp Upp Zhi Pro Fac Was Fac Ext Cet Res Tes Res Acc Machines Disabled 50 | . 1 . 6 1 . 3 1 5 . . 2 . . . . 9 . . . . 2 . . 7 . 1 6 . 6 Max in Single Turn 9 | . 1 . 2 1 . 3 1 2 . . 1 . . . . 9 . . . . 1 . . 1 . 1 2 . 1 Garrison Access 4 | . . . . . . . . . . . 1 . . . . 1 . . . . 1 . . . . . . . 1 Machines Repaired . | . . . . . . . . . . . . . . . . . . . . . . . . . . . . . . Machines Dismantled . | . . . . . . . . . . . . . . . . . . . . . . . . . . . . . . Machines Sabotaged . | . . . . . . . . . . . . . . . . . . . . . . . . . . . . . . Overloaded Fab Kills . | . . . . . . . . . . . . . . . . . . . . . . . . . . . . . . Hacking | -11 -10 -10 -9 -9 -9 -8 -8 -7 -7 -7 -7 -6 -6 -5 -5 -5 -5 -5 -5 -4 -4 -4 -4 -4 -4 -3 -3 -2 -1 --------- Run | Yrd Mat Min Mat Min Exi Min Mat Fac Was Fac Sto Fac DSF Fac Was Fac Upp Upp Zhi Pro Fac Was Fac Ext Cet Res Tes Res Acc Machines Accessed 105 | . 10 . 14 . 2 . 11 7 . 4 5 1 . 1 . 6 1 . 4 . 3 . 4 7 . 5 12 2 6 Terminals 66 | . 7 . 9 . . . 9 4 . 1 4 1 . 1 . 1 . . . . 1 . 3 7 . 4 8 2 4 Fabricators 8 | . . . . . . . . . . 1 . . . . . 4 . . . . 1 . . . . . 2 . . Repair Stations 10 | . 1 . 2 . . . 1 1 . 1 . . . . . . . . . . . . 1 . . 1 1 . 1 Recycling Units 6 | . 2 . 2 . . . . 1 . 1 . . . . . . . . . . . . . . . . . . . Scanalyzers 4 | . . . 1 . . . 1 . . . . . . . . 1 . . . . . . . . . . 1 . . Garrison Access 4 | . . . . . . . . 1 . . 1 . . . . . . . . . 1 . . . . . . . 1 Total Hacks 282 | . 38 . 47 . 2 . 35 22 . 7 9 1 . 2 . 17 1 . 17 . 6 . 10 16 . 10 27 5 10 Successful 138 | . 14 . 32 . 2 . 19 8 . 1 3 1 . 1 . 9 1 . 17 . 5 . 4 4 . 4 11 . 2 Failed 142 | . 24 . 14 . . . 15 14 . 6 6 . . 1 . 8 . . . . 1 . 6 12 . 6 16 5 8 Catastrophic 33 | . 2 . 1 . . . 1 2 . 2 3 . . . . 3 . . . . 1 . 1 3 . 3 8 1 2 Database Lockouts 2 | . . . 1 . . . 1 . . . . . . . . . . . . . . . . . . . . . . Manual 139 | . 34 . 31 . 1 . 25 14 . 2 1 . . . . 4 . . . . . . 5 5 . 3 11 . 3 Terminals 191 | . 31 . 35 . . . 29 14 . 2 8 1 . 2 . 4 . . . . 1 . 7 16 . 8 21 5 7 Fabricators 20 | . . . . . . . . . . 2 . . . . . 11 . . . . 4 . . . . . 3 . . Repair Stations 23 | . 3 . 4 . . . 3 3 . 1 . . . . . . . . . . . . 3 . . 2 2 . 2 Recycling Units 12 | . 4 . 4 . . . . 2 . 2 . . . . . . . . . . . . . . . . . . . Scanalyzers 10 | . . . 4 . . . 3 . . . . . . . . 2 . . . . . . . . . . 1 . . Garrison Access 6 | . . . . . . . . 3 . . 1 . . . . . . . . . 1 . . . . . . . 1 Terminal Hacks 69 | . 4 . 15 . 2 . 8 2 . . 2 1 . 1 . 2 1 . 17 . . . 2 3 . 2 6 . 1 Record 6 | . . . . . 1 . . . . . . . . . . . . . 5 . . . . . . . . . . Part Schematic 4 | . . . . . . . . . . . . . . . . . . . 4 . . . . . . . . . . Robot Schematic 2 | . 1 . . . . . 1 . . . . . . . . . . . . . . . . . . . . . . Robot Analysis 7 | . 1 . 2 . . . . . . . . . . . . . . . 4 . . . . . . . . . . Prototype ID Bank 13 | . 2 . 6 . . . 1 . . . . . . . . . . . 4 . . . . . . . . . . Open Door 6 | . . . . . . . . . . . 1 . . . . . 1 . . . . . . 2 . . 1 . 1 Open DSF 1 | . . . . . . . . . . . . 1 . . . . . . . . . . . . . . . . . Level Access Points 1 | . . . . . . . . . . . . . . . . . . . . . . . . . . 1 . . . Branch Access Points 5 | . . . 1 . . . 1 . . . . . . . . 1 . . . . . . 1 . . 1 . . . Terminal Index 4 | . . . . . . . 1 1 . . . . . . . . . . . . . . 1 . . . 1 . . Garrison Index 1 | . . . . . . . 1 . . . . . . . . . . . . . . . . . . . . . . Alert Level 6 | . . . 2 . . . . . . . . . . 1 . . . . . . . . . 1 . . 2 . . Unreport Threat 8 | . . . 4 . . . 1 1 . . . . . . . . . . . . . . . . . . 2 . . Disarm Traps 1 | . . . . . . . 1 . . . . . . . . . . . . . . . . . . . . . . Hauler Manifests 3 | . . . . . . . 1 . . . 1 . . . . 1 . . . . . . . . . . . . . Derelict Proto ID Bank 1 | . . . . . 1 . . . . . . . . . . . . . . . . . . . . . . . . Fabricator Hacks 9 | . . . . . . . . . . . . . . . . 4 . . . . 4 . . . . . 1 . . Load Schematic 6 | . . . . . . . . . . . . . . . . 3 . . . . 2 . . . . . 1 . . Build 3 | . . . . . . . . . . . . . . . . 1 . . . . 2 . . . . . . . . Repair Station Hacks 14 | . 2 . 4 . . . 2 2 . . . . . . . . . . . . . . 1 . . 2 1 . . Scan Component 8 | . 1 . 2 . . . 1 1 . . . . . . . . . . . . . . 1 . . 1 1 . . Repair 6 | . 1 . 2 . . . 1 1 . . . . . . . . . . . . . . . . . 1 . . . Recycling Unit Hacks 1 | . . . 1 . . . . . . . . . . . . . . . . . . . . . . . . . . Retrieve Components 1 | . . . 1 . . . . . . . . . . . . . . . . . . . . . . . . . . Scanalyzer 8 | . . . 4 . . . 2 . . . . . . . . 2 . . . . . . . . . . . . . Insert Component 4 | . . . 2 . . . 1 . . . . . . . . 1 . . . . . . . . . . . . . Analyze 4 | . . . 2 . . . 1 . . . . . . . . 1 . . . . . . . . . . . . . Garrison Access Hacks 3 | . . . . . . . . . . . 1 . . . . . . . . . 1 . . . . . . . 1 Seal Access 3 | . . . . . . . . . . . 1 . . . . . . . . . 1 . . . . . . . 1 Unauthorized Hacks 34 | . 8 . 8 . . . 7 4 . 1 . . . . . 1 . . . . . . 1 1 . . 3 . . Terminals 29 | . 6 . 6 . . . 7 4 . 1 . . . . . 1 . . . . . . 1 1 . . 2 . . Assimilate 1 | . . . . . . . 1 . . . . . . . . . . . . . . . . . . . . . . Botnet 6 | . 1 . 1 . . . . 1 . . . . . . . . . . . . . . 1 1 . . 1 . . Operators 1 | . . . . . . . 1 . . . . . . . . . . . . . . . . . . . . . . Skim 21 | . 5 . 5 . . . 5 3 . 1 . . . . . 1 . . . . . . . . . . 1 . . Fabricators . | . . . . . . . . . . . . . . . . . . . . . . . . . . . . . . Repair Stations . | . . . . . . . . . . . . . . . . . . . . . . . . . . . . . . Recycling Units 4 | . 2 . 2 . . . . . . . . . . . . . . . . . . . . . . . . . . Tunnel 4 | . 2 . 2 . . . . . . . . . . . . . . . . . . . . . . . . . . Scanalyzers 1 | . . . . . . . . . . . . . . . . . . . . . . . . . . . 1 . . Researchers 1 | . . . . . . . . . . . . . . . . . . . . . . . . . . . 1 . . Garrison Access . | . . . . . . . . . . . . . . . . . . . . . . . . . . . . . . Data Cores Recovered 6 | . 1 . . . . . 1 1 . . . . . . . 1 . . . . . . . . . . . . 2 Used 1 | . . . . . . . . . . . . . . . . 1 . . . . . . . . . . . . . Hacking Detections 82 | . 9 . 9 . . . 10 7 . 4 3 . . 1 . 6 . . . . 1 . 4 5 . 5 11 2 5 Full Trace Events 8 | . 1 . . . . . 1 . . 1 . . . . . 3 . . . . . . . . . . . 1 1 Feedback Events 1 | . . . . . . . . . . . . . . . . 1 . . . . . . . . . . . . . Hackware Fried 1 | . . . . . . . . . . . . . . . . 1 . . . . . . . . . . . . . Feedback Blocked . | . . . . . . . . . . . . . . . . . . . . . . . . . . . . . . Robot Schematics Acquired 3 | . 1 . . . . . 1 . . . . . . . . . . . . . . . . . . . 1 . . Robots Built 1 | . . . . . . . . . . . . . . . . . . . . . 1 . . . . . . . . Authchips 1 | . . . . . . . . . . . . . . . . . . . . . 1 . . . . . . . . Time 232 | . . . . . . . . . . . . . . . . 116 . . . . 116 . . . . . . . . Total Robot Build Rating 3 | . . . . . . . . . . . . . . . . . . . . . 3 . . . . . . . . Part Schematics Acquired 12 | . . . 2 . . . 1 . . . . . . . . 1 . . 4 . . . . . . . 4 . . Parts Built 1 | . . . . . . . . . . . . . . . . . . . . . 1 . . . . . . . . Authchips 1 | . . . . . . . . . . . . . . . . . . . . . 1 . . . . . . . . Time 187 | . . . . . . . . . . . . . . . . . . . . . 187 . . . . . . . . Total Part Build Rating 7 | . . . . . . . . . . . . . . . . . . . . . 7 . . . . . . . . Parts Repaired 6 | . 1 . 2 . . . 1 1 . . . . . . . . . . . . . . . . . 1 . . . Time 256 | . 26 . 64 . . . 108 38 . . . . . . . . . . . . . . . . . 20 . . . Parts Recycled . | . . . . . . . . . . . . . . . . . . . . . . . . . . . . . . Recycled Matter . | . . . . . . . . . . . . . . . . . . . . . . . . . . . . . . Retrieved Matter . | . . . . . . . . . . . . . . . . . . . . . . . . . . . . . . Retrieved Components 5 | . . . 5 . . . . . . . . . . . . . . . . . . . . . . . . . . Parts Scanalyzed 4 | . . . 2 . . . 1 . . . . . . . . 1 . . . . . . . . . . . . . Part Schematics Acquired 4 | . . . 2 . . . 1 . . . . . . . . 1 . . . . . . . . . . . . . Parts Damaged . | . . . . . . . . . . . . . . . . . . . . . . . . . . . . . . Bothacking | -11 -10 -10 -9 -9 -9 -8 -8 -7 -7 -7 -7 -6 -6 -5 -5 -5 -5 -5 -5 -4 -4 -4 -4 -4 -4 -3 -3 -2 -1 ------------ Run | Yrd Mat Min Mat Min Exi Min Mat Fac Was Fac Sto Fac DSF Fac Was Fac Upp Upp Zhi Pro Fac Was Fac Ext Cet Res Tes Res Acc Used RIF Installer . | . . . . . . . . . . . . . . . . . . . . . . . . . . . . . . Robots Hacked 3 | . . . . . . . . 2 . . . . . . . . . . . . . . . 1 . . . . . Non-combat 3 | . . . . . . . . 2 . . . . . . . . . . . . . . . 1 . . . . . Combat . | . . . . . . . . . . . . . . . . . . . . . . . . . . . . . . Robot Hacks Applied 3 | . . . . . . . . 2 . . . . . . . . . . . . . . . 1 . . . . . no_distress 1 | . . . . . . . . . . . . . . . . . . . . . . . . 1 . . . . . find_chute 1 | . . . . . . . . 1 . . . . . . . . . . . . . . . . . . . . . find_fabricator 1 | . . . . . . . . 1 . . . . . . . . . . . . . . . . . . . . . Relay Couplers Released 2 | . . . . . . . . . . . . . . . . 2 . . . . . . . . . . . . . Machine Destruction 2 | . . . . . . . . . . . . . . . . 2 . . . . . . . . . . . . . Fabnet Peak Effective % . | . . . . . . . . . . . . . . . . . . . . . . . . . . . . . . Robots Rewired 10 | . . . . . . . . . . . . . . . . . . . . 2 . . . 8 . . . . . Allies Hacked 3 | . . . . . . . . . . . . . . . . . . . . . . . 3 . . . . . . Hacks Repelled . | . . . . . . . . . . . . . . . . . . . . . . . . . . . . . . Allies | -11 -10 -10 -9 -9 -9 -8 -8 -7 -7 -7 -7 -6 -6 -5 -5 -5 -5 -5 -5 -4 -4 -4 -4 -4 -4 -3 -3 -2 -1 -------- Run | Yrd Mat Min Mat Min Exi Min Mat Fac Was Fac Sto Fac DSF Fac Was Fac Upp Upp Zhi Pro Fac Was Fac Ext Cet Res Tes Res Acc Total Allies 69 | . . 1 . . . . . . . . 10 . . . 19 . . . . 2 1 19 . 17 . . . . . Largest Group 19 | . . 1 1 . . . . . . . 10 . . . 19 17 . . . 2 1 19 14 12 3 . . . . Highest-Rated Group 684 | . . 31 31 . . . . . . . 173 . . . 684 584 . . . 95 47 684 507 579 104 . . . . Highest-Rated Ally 159 | . . 31 31 . . . . . . . 29 . . . 50 46 . . . 48 47 50 46 159 46 . . . . Total Orders 1 | . . . . . . . . . . . . . . . . . . . . . 1 . . . . . . . . AID 1 | . . . . . . . . . . . . . . . . . . . . . 1 . . . . . . . . Ally Attacks 424 | . . . 6 . . . . . . . 69 . . . . 70 . . . 20 . . 110 137 12 . . . . Total Damage 10102 | . . . 41 . . . . . . . 954 . . . . 1454 . . . 692 . . 2424 4301 236 . . . . Kills 56 | . . . 2 . . . . . . . 10 . . . . 9 . . . 3 . . 11 20 1 . . . . Allies Corrupted 2 | . . . . . . . . . . . . . . . . . . . . . . . 2 . . . . . . Allies Melted 1 | . . . . . . . . . . . . . . . . . . . . . . . . 1 . . . . . Intel | -11 -10 -10 -9 -9 -9 -8 -8 -7 -7 -7 -7 -6 -6 -5 -5 -5 -5 -5 -5 -4 -4 -4 -4 -4 -4 -3 -3 -2 -1 ------- Run | Yrd Mat Min Mat Min Exi Min Mat Fac Was Fac Sto Fac DSF Fac Was Fac Upp Upp Zhi Pro Fac Was Fac Ext Cet Res Tes Res Acc Robot Analysis Total 7 | . 1 . 2 . . . . . . . . . . . . . . . 4 . . . . . . . . . . Derelict Logs Recovered 7 | . . 2 . 1 . . . . . . . . . . . . 1 2 . 1 . . . . . . . . . Drone Launches . | . . . . . . . . . . . . . . . . . . . . . . . . . . . . . . Drone Recoveries . | . . . . . . . . . . . . . . . . . . . . . . . . . . . . . . Exploration | -11 -10 -10 -9 -9 -9 -8 -8 -7 -7 -7 -7 -6 -6 -5 -5 -5 -5 -5 -5 -4 -4 -4 -4 -4 -4 -3 -3 -2 -1 ------------- Run | Yrd Mat Min Mat Min Exi Min Mat Fac Was Fac Sto Fac DSF Fac Was Fac Upp Upp Zhi Pro Fac Was Fac Ext Cet Res Tes Res Acc Turns Passed 34922 | 78 1695 329 3111 966 374 658 3413 1971 271 1327 907 108 290 77 1422 1255 1675 422 384 1747 1660 1069 820 2427 461 1042 2394 576 1993 Spaces Moved 15071 | 42 882 164 1457 588 230 396 1437 1000 155 663 473 65 136 30 469 473 820 171 153 610 582 318 336 847 199 452 821 238 864 Core 1 | 1 . . . . . . . . . . . . . . . . . . . . . . . . . . . . . Treads 13293 | 41 882 164 1457 588 230 396 1437 514 . . . 65 136 30 469 473 820 171 153 610 582 318 336 847 199 452 821 238 864 Legs . | . . . . . . . . . . . . . . . . . . . . . . . . . . . . . . Wheels 1777 | . . . . . . . . 486 155 663 473 . . . . . . . . . . . . . . . . . . Hover . | . . . . . . . . . . . . . . . . . . . . . . . . . . . . . . Flight . | . . . . . . . . . . . . . . . . . . . . . . . . . . . . . . Fastest Speed 50 | 50 160 160 160 160 160 160 160 145 145 145 145 160 160 240 240 160 160 240 160 240 166 166 166 166 160 163 163 160 160 Average Speed 188 | 157 160 160 160 160 160 160 206 192 156 162 157 160 160 240 240 194 194 240 238 243 233 167 218 229 166 167 207 160 160 Slowest Speed 320 | 160 160 240 160 160 160 160 245 238 160 175 160 160 160 240 320 240 240 240 240 245 246 246 246 246 240 240 243 160 160 Overloaded Moves . | . . . . . . . . . . . . . . . . . . . . . . . . . . . . . . Propulsion Burnouts . | . . . . . . . . . . . . . . . . . . . . . . . . . . . . . . Robots Hopped . | . . . . . . . . . . . . . . . . . . . . . . . . . . . . . . Cave-ins Triggered . | . . . . . . . . . . . . . . . . . . . . . . . . . . . . . . Exploration Rate (%) 53 | 4 97 45 97 99 60 98 86 28 68 13 63 4 89 2 92 15 72 36 62 74 15 88 10 83 56 23 87 10 23 Regions Visited 29 Branch Regions 12 Pre-discovered Areas 12 | . 2 . 5 . 1 . 1 . . . . . . . . . . . 3 . . . . . . . . . . Known Exits Taken 11 | . 1 1 1 . . 1 1 . . 1 . 1 . . . 1 . . . . . . 1 . . 1 1 . . Unknown Exits Taken 11 | 1 . . . 1 1 . . . . . 1 . . . . . 1 1 1 1 . . . 1 1 . . 1 . Scrap Searched 8 | . . 1 . 1 . 1 . . . . . . . . . . 1 1 . 3 . . . . . . . . . Spaces Dug 44 | . . . . 10 . 19 . 1 . 2 . . . . . . . . . 11 . . 1 . . . . . . Terrain Destroyed 475 | . . . 46 74 . 58 18 34 7 15 . . . . . 30 46 . . 21 . . 3 2 . 2 17 12 90 Melee 3 | . . . . . . . . 1 . 2 . . . . . . . . . . . . . . . . . . . Projectile 103 | . . . . . . . 6 18 7 . . . . . . . . . . . . . 3 2 . . 14 9 44 AOE 358 | . . . 46 74 . 58 12 15 . 13 . . . . . 30 46 . . 21 . . . . . . . . 43 Terrain Rammed . | . . . . . . . . . . . . . . . . . . . . . . . . . . . . . . Walls Destroyed . | . . . . . . . . . . . . . . . . . . . . . . . . . . . . . . Machines Disabled . | . . . . . . . . . . . . . . . . . . . . . . . . . . . . . . Actions | -11 -10 -10 -9 -9 -9 -8 -8 -7 -7 -7 -7 -6 -6 -5 -5 -5 -5 -5 -5 -4 -4 -4 -4 -4 -4 -3 -3 -2 -1 --------- Run | Yrd Mat Min Mat Min Exi Min Mat Fac Was Fac Sto Fac DSF Fac Was Fac Upp Upp Zhi Pro Fac Was Fac Ext Cet Res Tes Res Acc Total 19939 | 50 1020 190 1893 603 237 408 1731 1041 184 826 585 70 200 35 731 733 884 180 172 825 840 822 407 1272 321 706 1367 334 1272 Wait 2711 | . 38 . 179 . . 2 118 17 . 56 24 . 41 . 178 136 25 6 . 91 133 431 44 253 24 208 406 37 264 Move 15044 | 41 881 163 1456 587 229 395 1436 1000 154 662 472 64 135 30 468 472 819 170 152 609 582 317 335 846 198 451 820 237 863 Hop . | . . . . . . . . . . . . . . . . . . . . . . . . . . . . . . Pick Up 148 | 2 9 . 14 2 2 . 20 5 5 3 2 1 2 . 7 7 6 . 1 5 13 1 2 4 13 6 8 2 6 Fast Attach 83 | 6 1 1 7 . . . 4 2 2 2 2 . 1 . 5 1 5 1 8 2 2 1 1 4 4 2 11 6 2 Attach 56 | . . 2 6 . . . 5 2 6 4 1 3 1 2 . 2 . . 1 4 6 . . . 1 2 2 2 4 Detach 31 | . . . 2 . . . 4 . 3 6 1 . 2 . 1 . . . 2 1 1 . . . 1 1 4 2 . Swap 217 | . 4 1 22 3 2 1 15 3 3 7 8 . 4 1 6 14 5 . 1 5 13 11 6 13 11 5 21 5 27 Drop 195 | . 2 . 19 2 4 . 28 6 8 2 5 2 2 . 10 7 9 . 7 2 9 4 2 8 23 6 18 4 6 Fire 1307 | . 78 23 167 9 . 8 96 3 3 69 65 . 12 2 56 91 15 3 . 86 80 57 16 96 46 21 73 37 95 Melee 26 | . . . . . . . . 2 . 6 1 . . . . . . . . . . . . 17 . . . . . Ram 14 | . . . . . . . . 1 . 9 4 . . . . . . . . . . . . . . . . . . Kick . | . . . . . . . . . . . . . . . . . . . . . . . . . . . . . . Crush 63 | 1 7 . 21 . . 2 5 . . . . . . . . 3 . . . . 1 . 1 7 . 4 4 2 5 Escape Stasis 8 | . . . . . . . . . . . . . . . . . . . . . . . . 8 . . . . . Rewire 35 | . . . . . . . . . . . . . . . . . . . . 20 . . . 15 . . . . . Trap 1 | . . . . . . . . . . . . . . . . . . . . . . . . 1 . . . . . Miscellaneous . | . . . . . . . . . . . . . . . . . . . . . . . . . . . . . . Route ------- -11/Scrapyard -10/Materials (discovered 6 exits: *Mat x3 / *Min x2 / Sub) -10/Mines -9/Materials (discovered 5 exits: *Mat x3 / *Min x2) -9/Mines (discovered 4 exits: *Mat x2 / *Exi / [*Zio]) -9/Exiles -8/Mines (discovered 2 exits: *Mat x2) -8/Materials (discovered 3 exits: *Fac x3) -7/Factory -7/Waste -7/Factory -7/Storage (discovered 2 exits: *Fac / Rec) -6/Factory -6/DSF -5/Factory -5/Waste -5/Factory (discovered 2 exits: *Upp x2) -5/Upper Caves -5/Upper Caves -5/Zhirov -4/Proximity Caves -4/Factory (discovered 2 exits: *Res / Ext) -4/Waste -4/Factory (discovered 4 exits: Upp x2 / *Ext x2) -4/Extension (discovered 2 exits: *Res / [*Cet]) -4/Cetus (discovered 2 exits: *Res / [*Arc]) -3/Research (discovered 6 exits: Res x3 / Arm / *Tes x2) -3/Testing -2/Research -1/Access To Epsilon Eridani History --------- Turn | Location | Event 30 | -11/Scrapyard | Discovered new exit (range 16) 79 | -11/Scrapyard | Entered Materials 278 | -10/Materials | Discovered new exit (range 12) 312 | -10/Materials | Build established: Mutant 552 | -10/Materials | Discovered new exit (range 15) 777 | -10/Materials | Discovered new exit (range 16) 1087 | -10/Materials | Discovered new exit (range 10) 1116 | -10/Materials | Identified exit to Mines 1173 | -10/Materials | Identified exit to Materials 1173 | -10/Materials | Identified exit to Subcaves 1220 | -10/Materials | Learned 8 Materials zone layouts 1255 | -10/Materials | Learned 4 Recycling zone layouts 1320 | -10/Materials | Learned 2 Storage zone layouts 1367 | -10/Materials | Learned Materials stockpile data 1402 | -10/Materials | Repaired Lgt. Treads 1774 | -10/Materials | Entered Mines 1793 | -10/Mines | Core integrity fell below 50% 1872 | -10/Mines | Learned 2 Materials zone layouts 1900 | -10/Mines | Learned Materials stockpile data 1963 | -10/Mines | Core integrity fell below 20% 2075 | -10/Mines | Discovered exit to Materials (range 5) 2080 | -10/Mines | Received a Mining Laser from a helpful Derelict 2103 | -10/Mines | Entered Materials 2103 | -9/Materials | Accompanied by 1 ally 2103 | -9/Materials | Evolved 2 slots: Propulsion x1, Utility x1 2104 | -9/Materials | Identified exit to Mines 2104 | -9/Materials | Identified exit to Materials 2570 | -9/Materials | Build established: Scavenger-Mutant 3384 | -9/Materials | Learned location of Mines (-8) 3438 | -9/Materials | Learned location of 1 exit from Materials 3458 | -9/Materials | Repaired Hvy. Assault Rifle 3513 | -9/Materials | Learned 2 Storage zone layouts 3543 | -9/Materials | Learned Storage stockpile data 3595 | -9/Materials | Learned Storage trap positions 3635 | -9/Materials | Learned Storage security intel 4611 | -9/Materials | Central database locked down 4888 | -9/Materials | Repaired Shield Generator 5214 | -9/Materials | Entered Mines 5524 | -9/Mines | A Derelict revealed a hidden shortcut to a safe place 5907 | -9/Mines | Discovered exit to Materials (range 5) 6006 | -9/Mines | Deemed a non-threat by the Exiles lab entrance 6060 | -9/Mines | Discovered exit to Materials (range 15) 6068 | -9/Mines | Found a damaged Exp. Sensor Array with a note attached 6085 | -9/Mines | Found Prototype Device 6143 | -9/Mines | Build established: Mutant 6174 | -9/Mines | Discovered new exit (range 5) 6180 | -9/Mines | Entered Exiles 6220 | -9/Exiles | Met 8R-AWN 6243 | -9/Exiles | Met EX-HEX 6289 | -9/Exiles | Met EX-BIN 6312 | -9/Exiles | Aligned with FarCom system 6313 | -9/Exiles | Given EX-Vault access code 6353 | -9/Exiles | Opened EX-Vault 6372 | -9/Exiles | Found Cloak of Protection 6383 | -9/Exiles | Found AWS/Gauss 6424 | -9/Exiles | Warned to stay clear of 0b10 Research branches 6471 | -9/Exiles | Met EX-DEC 6477 | -9/Exiles | Learned location of Zion (-7) 6533 | -9/Exiles | Discovered new exit (range 14) 6554 | -9/Exiles | Stole two prototypes: Cloak of Protection, AWS/Gauss 6554 | -9/Exiles | Entered Mines 6670 | -8/Mines | Build established: Scavenger-Mutant 6825 | -8/Mines | Discovered exit to Materials (range 10) 6835 | -8/Mines | Core integrity fell below 50% 7046 | -8/Mines | Discovered exit to Materials (range 13) 7212 | -8/Mines | Entered Materials 7212 | -8/Materials | Evolved 2 slots: Utility x2 7213 | -8/Materials | Identified exit to Factory 7874 | -8/Materials | Discovered exit to Factory (range 15) 8066 | -8/Materials | Build established: Mutant 8098 | -8/Materials | Learned location of 1 exit from Recycling 8150 | -8/Materials | Learned Factory stockpile data 8194 | -8/Materials | Learned 4 Recycling zone layouts 8246 | -8/Materials | Learned 4 Factory zone layouts 8258 | -8/Materials | Learned Factory stockpile data 8310 | -8/Materials | Learned 4 Recycling zone layouts 8485 | -8/Materials | Identified Exp. Sensor Array 9549 | -8/Materials | Discovered exit to Factory (range 10) 9736 | -8/Materials | Central database locked down 10582 | -8/Materials | Repaired Exp. Sensor Array 10625 | -8/Materials | Entered Factory 10625 | -7/Factory | Evolved 2 slots: Weapon x2 10626 | -7/Factory | Identified exit to Storage 10627 | -7/Factory | FarCom data flow suspended 10912 | -7/Factory | Build established: Tank 12242 | -7/Factory | Repaired Hvy. Armor Plating 12312 | -7/Factory | Cargo convoy interrupted 12596 | -7/Factory | Sucked down chute 12596 | -7/Factory | Entered Waste 12609 | -7/Waste | Spotted C-40 Crusher 12611 | -7/Waste | EMP discharged 12625 | -7/Waste | Destroyed C-40 Crusher 12652 | -7/Waste | Spotted C-40 Crusher 12666 | -7/Waste | Destroyed C-40 Crusher 12686 | -7/Waste | Found Damper Plating 12698 | -7/Waste | Spotted C-40 Crusher 12711 | -7/Waste | EMP discharged 12711 | -7/Waste | System corruption reached 10% 12723 | -7/Waste | Destroyed C-40 Crusher 12730 | -7/Waste | Spotted C-40 Crusher 12733 | -7/Waste | AWS/Gauss suddenly broke down 12781 | -7/Waste | Spotted C-40 Crusher 12811 | -7/Waste | EMP discharged 12834 | -7/Waste | Discovered new exit (range 15) 12863 | -7/Waste | Spotted C-40 Crusher 12867 | -7/Waste | Entered Factory 13331 | -7/Factory | Discovered exit to Storage (range 16) 13449 | -7/Factory | Build established: Gunner 13805 | -7/Factory | Build established: Tank 14194 | -7/Factory | Entered Storage 14195 | -7/Storage | Identified exit to Recycling 14196 | -7/Storage | Loaded intel: 13 trap records 14326 | -7/Storage | Garrison activated, responded to threat 14373 | -7/Storage | Destroyed 8 combat bots 14444 | -7/Storage | Assisted by bots powering up and referring to "LRC-V3" 14488 | -7/Storage | Met 01-MTF 14735 | -7/Storage | System corruption reached 30% 14855 | -7/Storage | Discovered new exit (range 15) 15029 | -7/Storage | Destroyed 01-MTF 15101 | -7/Storage | Entered Factory 15101 | -6/Factory | Evolved 2 slots: Propulsion x1, Utility x1 15209 | -6/Factory | Identified exit to DSF 15209 | -6/Factory | Entered DSF 15266 | -6/DSF | Additional patrols routed to DSF 15373 | -6/DSF | Discovered new exit (range 13) 15499 | -6/DSF | Entered Factory 15499 | -5/Factory | Evolved 2 slots: Power x1, Utility x1 15576 | -5/Factory | Sucked down chute 15576 | -5/Factory | Entered Waste 15621 | -5/Waste | Spotted C-40 Crusher 15635 | -5/Waste | Spotted C-40 Crusher 15637 | -5/Waste | Destroyed C-40 Crusher 15642 | -5/Waste | Destroyed C-40 Crusher 15649 | -5/Waste | Spotted C-40 Crusher 15661 | -5/Waste | Destroyed C-40 Crusher 15773 | -5/Waste | Spotted C-40 Crusher 15783 | -5/Waste | Destroyed C-40 Crusher 15819 | -5/Waste | Spotted C-40 Crusher 15842 | -5/Waste | Destroyed C-40 Crusher 15920 | -5/Waste | Build established: Scavenger-Gunner 15987 | -5/Waste | Spotted C-40 Crusher 16004 | -5/Waste | Destroyed C-40 Crusher 16322 | -5/Waste | Discovered new exit (range 14) 16649 | -5/Waste | Warlord forces began an assault 16998 | -5/Waste | Entered Factory 16998 | -5/Factory | Accompanied by 17 allies 17039 | -5/Factory | Identified exit to Upper Caves 17205 | -5/Factory | Garrison activated, responded to threat 17389 | -5/Factory | Lost 9 allies 17590 | -5/Factory | Build established: Gunner 17898 | -5/Factory | First assault squad dispatched 18013 | -5/Factory | Hacking Suite fried by hacking feedback 18086 | -5/Factory | Destroyed 7 combat bots 18253 | -5/Factory | Entered Upper Caves 18338 | -5/Upper Caves | Encountered a Warlord checkpoint 19299 | -5/Upper Caves | Build established: Tank 19753 | -5/Upper Caves | Learned Factory stockpile data 19813 | -5/Upper Caves | Discovered new exit (range 15) 19928 | -5/Upper Caves | Entered another Upper Caves area 19928 | -5/Upper Caves | Spotted R0-32U(f) 19928 | -5/Upper Caves | Spotted SR-2G5(f) 19929 | -5/Upper Caves | Cloak of Protection stolen by Master Thief 19929 | -5/Upper Caves | Exp. Sensor Array stolen by Master Thief 19930 | -5/Upper Caves | Encountered a Master Thief 19930 | -5/Upper Caves | Encountered a Master Thief 19932 | -5/Upper Caves | Destroyed R0-32U(f) 20064 | -5/Upper Caves | Learned Factory stockpile data 20304 | -5/Upper Caves | Discovered new exit (range 10) 20306 | -5/Upper Caves | Learned Factory emergency access door positions 20350 | -5/Upper Caves | Entered Zhirov 20350 | -5/Zhirov | Discovered new exit (range 3) 20405 | -5/Zhirov | Met Zhirov 20458 | -5/Zhirov | Learned location of Quarantine (-2) 20458 | -5/Zhirov | Learned location of Command (-1) 20492 | -5/Zhirov | Zhirov requested help retrieving the SGEMP Prototype 20528 | -5/Zhirov | Found Alien Artifact 20528 | -5/Zhirov | Identified Integrated Dissipator 20528 | -5/Zhirov | Installed Integrated Dissipator, increased core heat dissipation (+20) 20622 | -5/Zhirov | Found Alien Artifact 20734 | -5/Zhirov | Entered Proximity Caves 20926 | -4/Proximity Caves | Attracted the attention of an 0b10 checkpoint 21032 | -4/Proximity Caves | Build established: Scavenger-Tank 21038 | -4/Proximity Caves | Spotted B-86 Titan 21051 | -4/Proximity Caves | Destroyed B-86 Titan 21323 | -4/Proximity Caves | Attracted the attention of an 0b10 outpost 21382 | -4/Proximity Caves | Destroyed 7 combat bots 21713 | -4/Proximity Caves | Build established: Tank 22144 | -4/Proximity Caves | Learned Research garrison access intel 22389 | -4/Proximity Caves | Discovered new exit (range 9) 22481 | -4/Proximity Caves | Entered Factory 22481 | -4/Factory | Accompanied by 1 ally 22481 | -4/Factory | Evolved 2 slots: Propulsion x1, Utility x1 22482 | -4/Factory | Identified exit to Extension 22792 | -4/Factory | Build established: Scavenger-Tank 22978 | -4/Factory | Discovered new exit (range 6) 23113 | -4/Factory | Build established: Tank 23157 | -4/Factory | Garrison activated, responded to threat 23191 | -4/Factory | Fabricated M-28 Smith (x1) 23403 | -4/Factory | Fabricated Exp. Optical Array? 24036 | -4/Factory | Destroyed 9 combat bots 24141 | -4/Factory | Sucked down chute 24141 | -4/Factory | Entered Waste 24186 | -4/Waste | Spotted C-40 Crusher 24206 | -4/Waste | Destroyed C-40 Crusher 24233 | -4/Waste | Spotted C-40 Crusher 24249 | -4/Waste | Destroyed C-40 Crusher 24464 | -4/Waste | Spotted C-40 Crusher 24483 | -4/Waste | Destroyed C-40 Crusher 24519 | -4/Waste | Spotted C-40 Crusher 24534 | -4/Waste | Destroyed C-40 Crusher 24609 | -4/Waste | Spotted C-40 Crusher 24614 | -4/Waste | Destroyed C-40 Crusher 24635 | -4/Waste | Spotted C-40 Crusher 24651 | -4/Waste | Destroyed C-40 Crusher 24802 | -4/Waste | Build established: Gunner 24822 | -4/Waste | Warlord forces began an assault 24880 | -4/Waste | Lost 3 allies 25144 | -4/Waste | Discovered new exit (range 12) 25210 | -4/Waste | Entered Factory 25210 | -4/Factory | Accompanied by 14 allies 25526 | -4/Factory | Build established: Infiltrator-Gunner 25598 | -4/Factory | Identified exit to Upper Caves 25793 | -4/Factory | Lost 6 allies 25874 | -4/Factory | Spotted B-86 Titan 26030 | -4/Factory | Entered Extension 26030 | -4/Extension | Accompanied by 3 allies 26263 | -4/Extension | Build established: Gunner 26724 | -4/Extension | Rescued a captive Derelict 26754 | -4/Extension | Rescued a captive Derelict 27036 | -4/Extension | Rescued a captive Derelict 27046 | -4/Extension | Rescued a captive Derelict 27124 | -4/Extension | Rescued A7 27127 | -4/Extension | Build established: Commander-Gunner 27427 | -4/Extension | Spotted B-86 Titan 27438 | -4/Extension | Spotted B-86 Titan 27451 | -4/Extension | Destroyed B-86 Titan 27473 | -4/Extension | Allies destroyed B-86 Titan 27486 | -4/Extension | Lost 5 allies 27527 | -4/Extension | Build established: Commander-Tank 27530 | -4/Extension | Disrupted transfer network 27634 | -4/Extension | Rescued a captive Derelict 27639 | -4/Extension | Rescued a captive Derelict 27762 | -4/Extension | Lost 4 allies 27963 | -4/Extension | Build established: Tank 28005 | -4/Extension | Rescued a captive Derelict 28012 | -4/Extension | Rescued a captive Derelict 28046 | -4/Extension | Murdered A7 28047 | -4/Extension | Extracted ID and sensor layout for unrecognized location from A7's data core 28076 | -4/Extension | Found Prototype Protection 28113 | -4/Extension | Discovered new exit (range 10) 28114 | -4/Extension | Discovered new exit (range 6) 28457 | -4/Extension | Entered Cetus 28457 | -4/Cetus | Accompanied by 4 allies 28481 | -4/Cetus | Spotted Cetus Guard 28481 | -4/Cetus | Spotted Cetus Guard 28484 | -4/Cetus | Spotted Cetus Guard 28491 | -4/Cetus | Destroyed Cetus Guard 28491 | -4/Cetus | Spotted Cetus Guard 28497 | -4/Cetus | Destroyed Cetus Guard 28502 | -4/Cetus | Destroyed Cetus Guard 28508 | -4/Cetus | Destroyed Cetus Guard 28695 | -4/Cetus | Discovered new exit (range 16) 28743 | -4/Cetus | Spotted Cetus Guard 28747 | -4/Cetus | Spotted Cetus Guard 28749 | -4/Cetus | Spotted Cetus Guard 28753 | -4/Cetus | Spotted Cetus Guard 28755 | -4/Cetus | Destroyed Cetus Guard 28761 | -4/Cetus | Destroyed Cetus Guard 28768 | -4/Cetus | Destroyed Cetus Guard 28776 | -4/Cetus | Destroyed Cetus Guard 28811 | -4/Cetus | Discovered new exit (range 16) 28823 | -4/Cetus | Met Revision 17 28858 | -4/Cetus | Build established: Scavenger-Tank 28886 | -4/Cetus | Identified Med. Regenerative Plating 28918 | -4/Cetus | Entered Research 28918 | -3/Research | Evolved 2 slots: Utility x1, Weapon x1 28919 | -3/Research | Loaded intel: 4 garrison access locations 28953 | -3/Research | Identified exit to Research 29006 | -3/Research | Repaired Enh. Autogun 29118 | -3/Research | Revision forces began assault on 0b10 29174 | -3/Research | Met up with Revision 17++ 29207 | -3/Research | Identified exit to Armory 29207 | -3/Research | Identified exit to Testing 29500 | -3/Research | Build established: Scavenger-Gunner 29618 | -3/Research | Research terminal network offline 29679 | -3/Research | Found Gamma Bomb Array 29688 | -3/Research | Spotted Striker 29737 | -3/Research | Lost 4 allies 29960 | -3/Research | Entered Testing 29988 | -3/Testing | Found Prototype Launcher 29988 | -3/Testing | Identified Com. Tesla Bomb Launcher 30050 | -3/Testing | Spotted PG-P92LL4QSIS 30115 | -3/Testing | Found Prototype Protection 30115 | -3/Testing | Identified SHELL Armor 30286 | -3/Testing | Destroyed 7 combat bots 30836 | -3/Testing | Found Prototype Processor 30836 | -3/Testing | Identified Exp. Targeting Computer 30918 | -3/Testing | Found Prototype Device 30918 | -3/Testing | Identified 2N-1CE's Frost Array 31119 | -3/Testing | Destroyed PG-P92LL4QSIS 31244 | -3/Testing | Spotted Superbehemoth 31292 | -3/Testing | System corruption reached 10% 31569 | -3/Testing | Found Prototype Device 31569 | -3/Testing | Identified Adv. Kinecellerator 31577 | -3/Testing | Found Adv. Kinecellerator 31723 | -3/Testing | Found Prototype Hackware 32208 | -3/Testing | Garrison activated, responded to threat 32319 | -3/Testing | Discovered exit to Research (range 13) 32341 | -3/Testing | Found Prototype Device 32341 | -3/Testing | Identified Exp. ECM Suite 32354 | -3/Testing | Entered Research 32354 | -2/Research | Evolved 2 slots: Power x1, Propulsion x1 32914 | -2/Research | Discovered new exit (range 9) 32930 | -2/Research | Entered Access 32930 | -1/Access | Evolved 2 slots: Utility x1, Weapon x1 33234 | -1/Access | Build established: Scavenger-Executioner 33480 | -1/Access | Spotted B-99 Colossus 33664 | -1/Access | Spotted B-99 Colossus 34430 | -1/Access | First assault squad dispatched 34719 | -1/Access | Identified Exp. System Shield 34727 | -1/Access | Discovered new exit (range 5) 34793 | -1/Access | Destroyed 9 combat bots 34827 | -1/Access | Destroyed B-99 Colossus 34876 | -1/Access | Destroyed B-99 Colossus 34923 | *** | Escaped! Last Messages --------------- 34885_ G-73 Enforcer suffers critical hit (Destroy). 34885_ Destroyed Myomer Leg. 34885_ Slug penetrates G-73 Enforcer. 34887_ M-36 Artificer fits Unknown Protection on K-01 Serf. 34887_ K-01 Serf collects debris. 34888_ Slug penetrates G-73 Enforcer. 34888_ G-73 Enforcer suffers critical hit (Destroy). 34888_ Destroyed Adv. Heat Sink. 34888_ Slug penetrates G-73 Enforcer. 34888_ G-73 Enforcer destroyed. 34890_ System corrupted: Energy discharge (-99). 34890_ K-01 Serf collects debris. 34891_ Slug penetrates G-73 Enforcer. 34891_ G-73 Enforcer destroyed. 34893_ K-01 Serf collects debris. 34902_ Ended siege mode. 34904_ Acquired 154 matter. 34908_ K-01 Serf collects debris. 34912_ Acquired 80 matter. 34914_ K-01 Serf collects debris. Map ----- +----------------------------------------------------+ | ?# """"" #???## #????# !]] #?????????? | | ?# """"" #???## #????# ]]] #??#??????? | | ?# """"" * #????# ###??# #?????????? | | "# """"" #????# #?#??# #?????#???? | | T# """"" #?#??########+#????# #??#?#????? | | "# """"" //[#??#??????? ???????# #?????????? | | "# // #?#?###????? ??????# *#???#?????? | | # ] /[ #??#???????????????# ##?????#??? | | # #????#?????????????# #????????#? | | =# #??????????????#???# ^ ########### | | ########+###########################+#+## ] # | | [=* ! %%* =%= # # | | !%=%! % !!u k + " # | | ############### ### = = "####### # """ # | | # "" ##* !*%! "##????# # """ # | | # "" ##= [%/== ""#??#??# # " # | | # """" ## ==%[ T#?????# + # | | # """" ## !%% ""#?????# # ! # | | # """" ## =*%/ ""#??#??# # # | | / """" ### *% = ""##?#?## ########## | | # """" ## = ##??#/ ##??????? | | # "" # ### ![% ##???# T" #??????#? | | # # #?# =%*%! #????# "" #???????? | | # ##########?# %* #????# #???????? | | # #?##????#??# [ #????## ##?#??#??# | | # #?????#?#?## @" #?????# #????????? | | # ##?##?????## "" kk#?#???# #????????? | | #% #??????????# #?????# #??????#?? | | # #?#?#???#??# #?????# ########?? | | # #??????????# #???#?# #?? | | # #??????????#""""" * ""#?????# +?? | | # ##########???"??" "!"???##??# #?? | | ###+######?## ##?????""" "???????# #?? | | #?# #?#?????# = ###"""""""!""#?#???# #?? | | ??#*#??????## #?# != ! #?#???# ########?? | | ??#%#???#???# #?# =%* ! ! #?#???# #?????#??? | | ??#=#??????## #?# !! ! ##????# #????????? | | #?# ######### #?# #????## ###??????? | | #?# #?# # ### #????# ! ######### | | ### ### ! # #?# #????# | | / ### ###??# | | ###### # #?#### ####????# ###+##### | | #???## # #?#??# #?????#?###### " | | #????####### #????# ########????## """ | | #???##############????# #??#??# """ | | #???# ! / ##???# ? #????## " | | #???# #???## ? #?????# | | #???# ""G"" #????# ?? ##???## | | #####! " " ############# #?????# | | |=%= "[! ## # #???#?# | +----------------------------------------------------+ Best States ------------- Heat Dissipation 172 Energy Generation 97 Energy Capacity 910 Matter Stores 300 Matter Capacity 300 Sight Range 23 Robot Scan Range 20 Terrain Scan Range 24 Terrain Scan Density 10 Jamming Range 16 Cloak Strength 5 Base Temperature (-) 100 Armor Coverage 1800 Resistance: EM 90 Weapon Shielding 66 Weapon Cycling 25 Phase Shifting 15 Evasion (%) 55 Targeting Accuracy 12 Core Analysis 6 Armor Integrity Analysis 30 Recoil Reduction 6 Matter Filtering 50 Kinecelleration 50 Salvage Targeting 4 Offensive Hacking 14 Defensive Hacking 16 Authchip Count 2 Trap Extractor Capacity 6 Item Schematics ----------------- Transport Network Coupler | -9/Materials | Scanalyzed Rocket Launcher | -9/Materials | Scanalyzed Exp. Sensor Array | -8/Materials | Scanalyzed Enh. Autogun | -5/Factory | Scanalyzed Assault Drone Bay | -5/Zhirov | Free Exp. Heat Sink | -5/Zhirov | Free Exp. Optical Array | -5/Zhirov | Free Imp. Arc Thrower | -5/Zhirov | Free Hvy. Hardcell Cannon | -3/Testing | Archive Spectral Analyzer | -3/Testing | Archive Hvy. Neutron Cannon | -3/Testing | Archive Cld. Field Propulsion Drive | -3/Testing | Archive Robot Schematics ------------------ M-13 Machinist | -10/Materials | Hacked M-28 Smith | -8/Materials | Hacked R-10 Processor | -3/Testing | Archive Fabricated ------------ M-28 Smith | x1 | -4/Factory | Authchip Exp. Optical Array | x1 | -4/Factory | Authchip Alien Tech Used ----------------- Integrated Dissipator Achievements -------------- None Challenges ------------ None Game ------ Seed MakeshiftPortableCoupler Manual? 0 Play Time 03:00:56 Cumulative 521.3 hours Start 2024.10.31 @ 16:48:10 End 2024.11.02 @ 13:36:43 Sessions 13 Manual Loads 0 Difficulty Rogue Special Mode None Game No. 302 Rogue 302 Adventurer 0 Explorer 0 Win Type 0 Total 39 Types 27/3/4/1/1/0/1/1/1 Lore% 81 Gallery% 85 Achievement% 85 Wizard Run 0 Options --------- Layout 0 ASCII 0 Keyboard 1 Movement Numpad Keybinds 0 Fullscreen 2 Font 18/SmallcapsGlow Map View 76x50 Zoom Use 0% Tactical HUD 1 Map Filters NONE Filters NONE Steam 1 RUN: 50d3c86c-dfba-42f6-a60c-a30909c48916